bitfinex/quotes_BTCUSD_20251015
["timestamp","ask_amount","ask_price","bid_price","bid_amount"]
[1760496344402,0.00114153,113330.0,113320.0,0.28869135]
[1760496344806,0.00114153,113330.0,113320.0,0.17749135]
[1760496345228,0.00114153,113330.0,113320.0,0.28869135]
[1760496345392,0.00114153,113330.0,113320.0,0.17749135]
[1760496345819,0.88838212,113330.0,113320.0,0.001]
[1760496346021,0.9549598,113330.0,113320.0,0.001]
[1760496346208,0.98150817,113330.0,113320.0,0.001]
[1760496346414,1.35227299,113330.0,113320.0,0.001]
[1760496346607,0.98150817,113330.0,113320.0,0.001]
[1760496346808,0.61074335,113330.0,113320.0,0.001]
[1760496347066,0.98150817,113330.0,113320.0,0.001]
[1760496347440,0.51651301,113310.0,113290.0,0.18536492]
[1760496347643,0.88727783,113310.0,113290.0,0.18551405]
[1760496348840,0.88727783,113310.0,113290.0,0.18651405]
[1760496349530,0.1765225,113300.0,113290.0,0.18651405]
[1760496349971,0.88727783,113310.0,113290.0,0.18651405]
[1760496350197,0.1765225,113300.0,113290.0,0.18651405]
[1760496351132,0.1765225,113300.0,113290.0,0.18751405]
[1760496352260,0.1765225,113300.0,113290.0,0.17868721]
[1760496352703,0.88728732,113300.0,113290.0,0.00214913]
[1760496352922,0.5165225,113300.0,113290.0,0.00214913]
[1760496353130,0.88728732,113300.0,113290.0,0.00214913]
[1760496353582,0.88728732,113300.0,113290.0,0.00114913]
[1760496353784,0.88728732,113300.0,113290.0,0.00014913]
[1760496354130,0.88728732,113300.0,113290.0,0.00114913]
[1760496355879,0.90112809,113300.0,113290.0,0.00114913]
[1760496358532,0.93731037,113300.0,113290.0,0.00114913]
[1760496360516,0.93731037,113300.0,113290.0,0.00014913]
[1760496361707,0.56654555,113300.0,113290.0,0.00014913]
[1760496361922,0.93731037,113300.0,113290.0,0.00014913]
[1760496362226,0.53036327,113300.0,113290.0,0.00014913]
[1760496362440,0.5165225,113300.0,113290.0,0.17668721]
[1760496362580,0.1765225,113300.0,113290.0,0.17668721]
[1760496363002,0.22208625,113320.0,113300.0,0.1765225]
[1760496363003,0.55666879,113320.0,113300.0,0.1765225]
[1760496363217,0.17650692,113310.0,113290.0,0.17668721]
[1760496363416,0.17650692,113310.0,113290.0,0.19534101]
[1760496363581,0.1765225,113300.0,113290.0,0.17768721]
[1760496364170,0.1765225,113300.0,113290.0,0.17668721]
[1760496364369,0.1765225,113300.0,113290.0,0.00114913]
[1760496364806,0.1765225,113300.0,113290.0,0.00014913]
[1760496365561,0.88728732,113300.0,113290.0,0.00114913]
[1760496366011,0.88728732,113300.0,113290.0,0.00014913]
[1760496366200,0.88728732,113300.0,113290.0,0.00214913]
[1760496366556,0.88728732,113300.0,113290.0,0.00014913]
[1760496366557,0.9373107,113300.0,113290.0,0.00014913]
[1760496366757,0.9373107,113300.0,113290.0,0.00114913]
[1760496367532,0.9373107,113300.0,113290.0,0.00214913]
[1760496367708,0.9373107,113300.0,113290.0,0.00014913]
[1760496367938,0.9373107,113300.0,113290.0,0.00114913]
[1760496373281,0.95381543,113300.0,113290.0,0.00114913]
[1760496373491,0.95381543,113300.0,113290.0,1e-08]
[1760496373703,1.32458025,113300.0,113290.0,1e-08]
[1760496374266,0.55273595,113280.0,113270.0,0.00265578]
[1760496374469,0.9400055,113280.0,113270.0,0.00315318]
[1760496375105,0.95384853,113280.0,113270.0,0.00315318]
[1760496375405,0.91766625,113280.0,113270.0,0.00315318]
[1760496375737,0.91766625,113280.0,113270.0,0.17972243]
[1760496375738,0.35384303,113280.0,113270.0,0.17972243]
[1760496375889,0.18534862,113300.0,113280.0,0.17654625]
[1760496376303,0.19034837,113310.0,113290.0,0.17653808]
[1760496376455,0.2068681,113310.0,113290.0,0.17653808]
[1760496376654,0.5165225,113300.0,113290.0,0.17653808]
[1760496376907,0.1765225,113300.0,113290.0,0.17653808]
[1760496377345,0.17653808,113290.0,113270.0,0.00315318]
[1760496377540,0.17655367,113280.0,113270.0,0.00315318]
[1760496377698,0.17655367,113280.0,113270.0,0.17972243]
[1760496377903,0.17655367,113280.0,113270.0,0.00315318]
[1760496378105,0.51655367,113280.0,113270.0,0.00315318]
[1760496378688,0.51655367,113280.0,113270.0,0.00415318]
[1760496379716,0.51655367,113280.0,113270.0,0.18072243]
[1760496380367,0.01384139,113290.0,113280.0,0.17655367]
[1760496380709,0.71229682,113310.0,113290.0,0.17652761]
[1760496380710,0.18533226,113310.0,113290.0,0.17652761]
[1760496380948,0.1765225,113300.0,113290.0,0.17652761]
[1760496381371,0.5165225,113300.0,113280.0,0.17655367]
[1760496381548,0.5165225,113300.0,113280.0,0.19420903]
[1760496382627,0.17653808,113290.0,113280.0,0.19520903]
[1760496382914,0.17653808,113290.0,113270.0,0.18855089]
[1760496383552,0.17653808,113290.0,113280.0,0.17655367]
[1760496383763,0.17653808,113290.0,113280.0,0.001]
[1760496383968,0.17653808,113290.0,113280.0,0.17655367]
[1760496384570,0.17653808,113290.0,113280.0,0.19420903]
[1760496384914,0.17653808,113290.0,113280.0,0.17755367]
[1760496385122,0.17653808,113290.0,113280.0,0.001]
[1760496385315,0.17653808,113290.0,113280.0,0.17755367]
[1760496385624,0.17653808,113290.0,113280.0,0.19520903]
[1760496386338,0.17653808,113290.0,113280.0,0.001]
[1760496386499,0.17653808,113290.0,113280.0,0.002]
[1760496387339,0.17653808,113290.0,113280.0,0.17855367]
[1760496387904,0.17653808,113290.0,113280.0,0.002]
[1760496389701,0.17653808,113290.0,113280.0,0.17855367]
[1760496390119,0.17653808,113290.0,113280.0,0.002]
[1760496390838,0.17653808,113290.0,113280.0,0.17855367]
[1760496393313,0.17653808,113290.0,113280.0,0.002]
[1760496393484,0.17653808,113290.0,113280.0,0.17855367]
[1760496393695,0.17653808,113290.0,113280.0,0.19620903]
[1760496393903,1.04348706,113300.0,113280.0,0.17855367]
[1760496395088,0.17653808,113290.0,113280.0,0.17855367]
[1760496395294,0.17653808,113290.0,113280.0,0.17755367]
[1760496395952,1.04348706,113300.0,113280.0,0.17755367]
[1760496396081,0.5165225,113300.0,113280.0,0.17755367]
[1760496396284,0.5165225,113300.0,113280.0,0.17655367]
[1760496396659,0.5165225,113300.0,113280.0,0.19520903]
[1760496396864,0.5165225,113300.0,113280.0,0.17855367]
[1760496397065,0.5165225,113300.0,113290.0,0.17653808]
[1760496398015,0.5165225,113300.0,113290.0,0.19419188]
[1760496398867,0.88737547,113300.0,113290.0,0.19519188]
[1760496399082,0.88737547,113300.0,113290.0,0.17753808]
[1760496399680,0.71085297,113300.0,113290.0,0.17753808]
[1760496399875,0.88737547,113300.0,113290.0,0.17753808]
[1760496400299,0.34,113300.0,113290.0,0.17753808]
[1760496401317,0.57002534,113310.0,113290.0,0.17753808]
[1760496402127,0.57002534,113310.0,113290.0,0.17653808]
[1760496402300,0.57002534,113310.0,113290.0,0.19419188]
[1760496402502,0.1765225,113300.0,113290.0,0.19419188]
[1760496403102,0.57002534,113310.0,113290.0,0.56504485]
[1760496403303,0.01384011,113310.0,113300.0,0.54737547]
[1760496403503,0.00057082,113320.0,113310.0,0.17650692]
[1760496403906,0.39214526,113340.0,113330.0,0.17647577]
[1760496404111,0.17649198,113320.0,113300.0,0.18534862]
[1760496404315,0.54734495,113320.0,113300.0,0.18534862]
[1760496404523,0.54734495,113320.0,113300.0,0.66740159]
[1760496404874,0.5474327,113320.0,113300.0,0.29654862]
[1760496405227,0.5474327,113320.0,113300.0,0.18634862]
[1760496405453,0.5474327,113320.0,113300.0,0.18734862]
[1760496405653,0.5474327,113320.0,113300.0,0.18634862]
[1760496405853,0.5474327,113320.0,113300.0,0.29754862]
[1760496406036,0.5474327,113320.0,113300.0,0.18734862]
[1760496406268,0.5474327,113320.0,113300.0,0.29854862]
[1760496406787,0.5474327,113320.0,113310.0,0.19415761]
[1760496408148,0.5474327,113320.0,113310.0,0.01965069]
[1760496408356,1.25828567,113320.0,113310.0,0.002]
[1760496408794,1.27212296,113320.0,113310.0,0.002]
[1760496409631,0.90126999,113320.0,113310.0,0.002]
[1760496409780,0.53041702,113320.0,113310.0,0.002]
[1760496409987,0.90126999,113320.0,113310.0,0.002]
[1760496410582,0.8874327,113320.0,113310.0,0.002]
[1760496414227,1.29446795,113320.0,113310.0,0.002]
[1760496415090,0.17653808,113290.0,113280.0,0.17920905]
[1760496415330,0.17653808,113290.0,113280.0,0.00265545]
[1760496415331,0.88739105,113290.0,113280.0,0.00265545]
[1760496415924,0.51653808,113290.0,113280.0,0.00265545]
[1760496416143,0.34,113290.0,113280.0,0.56771745]
[1760496416478,0.34,113290.0,113280.0,0.55006209]
[1760496417038,0.01384017,113300.0,113290.0,0.17653808]
[1760496417235,0.01384017,113300.0,113290.0,0.56504485]
[1760496417458,0.01384017,113300.0,113290.0,0.54739105]
[1760496418310,0.34,113310.0,113300.0,0.1765225]
[1760496418458,0.19924296,113320.0,113310.0,0.17650692]
[1760496418854,0.01392642,113320.0,113310.0,0.54735989]
[1760496419281,0.19041777,113320.0,113300.0,0.54737547]
[1760496419482,0.56127074,113320.0,113300.0,0.65853547]
[1760496419819,0.56127074,113320.0,113300.0,0.2876825]
[1760496420348,0.1765225,113300.0,113280.0,0.00265545]
[1760496420548,0.1765225,113300.0,113280.0,0.5677165]
[1760496420549,0.54737547,113300.0,113280.0,0.5677165]
[1760496420756,0.17653808,113290.0,113280.0,0.17920817]
[1760496421026,0.54737547,113300.0,113280.0,0.55006114]
[1760496421317,0.54737547,113300.0,113280.0,0.29036817]
[1760496421519,0.1765225,113300.0,113280.0,0.29036817]
[1760496421753,0.1765225,113300.0,113280.0,0.00265545]
[1760496422030,0.17653808,113290.0,113280.0,0.00365545]
[1760496422172,0.17653808,113290.0,113280.0,0.00465545]
[1760496422613,0.17653808,113290.0,113280.0,0.00365545]
[1760496422838,0.17653808,113290.0,113280.0,0.18120912]
[1760496423014,0.18540366,113320.0,113290.0,0.18536498]
[1760496423337,0.34,113310.0,113300.0,0.19417475]
[1760496423876,0.1765791,113320.0,113310.0,0.17650692]
[1760496424091,0.5165791,113320.0,113310.0,0.17650692]
[1760496424329,0.1765791,113320.0,113310.0,0.19415761]
[1760496424440,0.5165791,113320.0,113310.0,0.19415761]
[1760496425070,0.5165791,113320.0,113300.0,0.2876825]
[1760496425274,0.5165791,113320.0,113310.0,0.001]
[1760496425501,0.5165791,113320.0,113310.0,0.002]
[1760496426005,0.5165791,113320.0,113310.0,0.01865069]
[1760496426778,0.5165791,113320.0,113310.0,0.01765069]
[1760496427387,0.5165791,113320.0,113300.0,0.19417475]
[1760496427642,0.1765225,113300.0,113280.0,0.17920912]
[1760496427865,0.17653808,113290.0,113280.0,0.00265545]
[1760496428212,0.17653808,113290.0,113280.0,0.17920912]
[1760496428562,0.51653808,113290.0,113280.0,0.00265545]
[1760496429000,0.51653808,113290.0,113280.0,0.18020912]
[1760496429705,0.51653808,113290.0,113280.0,0.00365545]
[1760496429868,0.51653808,113290.0,113280.0,0.18020912]
[1760496430899,0.51653808,113290.0,113280.0,0.18120912]
[1760496431113,0.34,113290.0,113280.0,0.18120912]
[1760496431968,0.51653808,113290.0,113280.0,0.18120912]
[1760496436136,0.34,113290.0,113280.0,0.18120912]
[1760496436369,0.18533226,113310.0,113290.0,0.17653808]
[1760496436547,0.34,113300.0,113290.0,0.19419188]
[1760496436772,0.5165225,113300.0,113290.0,0.19419188]
[1760496437965,0.5165225,113300.0,113290.0,0.19519188]
[1760496438184,0.5165225,113300.0,113290.0,0.17753808]
[1760496438525,0.34,113300.0,113290.0,0.17753808]
[1760496438730,0.19917133,113310.0,113300.0,0.1765225]
[1760496438731,0.01383907,113310.0,113300.0,0.1765225]
[1760496438926,0.01383907,113310.0,113300.0,0.19417475]
[1760496439375,0.17658085,113320.0,113300.0,0.19417475]
[1760496439556,0.17650692,113310.0,113300.0,0.19417475]
[1760496440371,0.17650692,113310.0,113300.0,0.1765225]
[1760496440583,0.17650692,113310.0,113300.0,0.19417475]
[1760496441221,0.17650692,113310.0,113300.0,0.01965225]
[1760496441767,0.17650692,113310.0,113300.0,0.19617475]
[1760496441973,0.17650692,113310.0,113300.0,0.1785225]
[1760496442645,0.17658085,113320.0,113300.0,0.1785225]
[1760496443559,0.17650692,113310.0,113300.0,0.1775225]
[1760496443722,0.17650692,113310.0,113300.0,0.001]
[1760496443924,0.17650692,113310.0,113300.0,0.01765225]
[1760496444159,0.17650692,113310.0,113300.0,0.16765225]
[1760496444363,0.17650692,113310.0,113300.0,0.16865225]
[1760496444994,0.17650692,113310.0,113300.0,0.151]
[1760496444995,0.51650692,113310.0,113300.0,0.151]
[1760496445194,1.16403148,113310.0,113300.0,0.151]
[1760496445351,0.51650692,113310.0,113300.0,0.151]
[1760496445560,1.16403148,113310.0,113300.0,0.151]
[1760496446115,1.17787032,113310.0,113300.0,0.152]
[1760496446614,1.17787032,113310.0,113300.0,0.151]
[1760496446919,1.17787032,113310.0,113300.0,0.15]
[1760496447116,1.13452216,113310.0,113300.0,0.151]
[1760496448880,1.17070444,113310.0,113300.0,0.151]
[1760496449751,1.17070444,113310.0,113300.0,0.15]
[1760496452897,1.1568656,113310.0,113300.0,0.15]
[1760496454618,0.33283412,113310.0,113300.0,0.15]
[1760496454813,0.47315876,113310.0,113300.0,0.15]
[1760496455400,0.17650692,113310.0,113300.0,0.3265225]
[1760496455609,0.17650692,113310.0,113300.0,0.15]
[1760496455991,0.51650692,113310.0,113300.0,0.15]
[1760496456192,0.51650692,113310.0,113300.0,0.152]
[1760496457029,0.51650692,113310.0,113300.0,0.151]
[1760496457390,0.51650692,113310.0,113300.0,0.152]
[1760496458314,0.51650692,113310.0,113300.0,0.151]
[1760496458746,1.16403148,113310.0,113300.0,0.151]
[1760496460112,1.20021376,113310.0,113300.0,0.151]
[1760496461640,1.20021376,113310.0,113300.0,0.15]
[1760496464372,0.5526892,113310.0,113300.0,0.15]
[1760496464571,1.20021376,113310.0,113300.0,0.15]
[1760496466790,0.5526892,113310.0,113300.0,0.15]
[1760496467001,1.20021376,113310.0,113300.0,0.15]
[1760496467892,1.21405371,113310.0,113300.0,0.15]
[1760496471007,1.20021376,113310.0,113300.0,0.15]
[1760496473556,0.17650692,113310.0,113300.0,0.15]
[1760496473785,0.82403148,113310.0,113300.0,0.15]
[1760496474002,1.20021376,113310.0,113300.0,0.15]
[1760496475396,1.21405377,113310.0,113300.0,0.15]
[1760496480209,1.23061478,113310.0,113300.0,0.15]
[1760496480981,0.21272036,113290.0,113280.0,0.00265545]
[1760496481157,0.86024492,113290.0,113280.0,0.00265545]
[1760496482016,0.86024492,113290.0,113280.0,0.00365545]
[1760496483503,0.86024492,113290.0,113280.0,0.00265545]
[1760496484254,0.87408691,113290.0,113280.0,0.00265545]
[1760496485362,0.59762963,113290.0,113280.0,0.00265545]
[1760496489436,0.22656235,113290.0,113280.0,0.00265545]
[1760496489616,0.59762963,113290.0,113280.0,0.00265545]
[1760496491612,0.35975025,113290.0,113280.0,0.00265545]
[1760496491814,0.90735561,113290.0,113280.0,0.00265545]
[1760496493362,1.24735561,113290.0,113280.0,0.00265545]
[1760496493578,1.28353789,113290.0,113280.0,0.00265545]
[1760496496674,0.92378764,113290.0,113280.0,0.00265545]
[1760496497270,1.29485492,113290.0,113280.0,0.00265545]
[1760496497481,1.29499806,113290.0,113280.0,0.00265545]
[1760496500694,1.25881578,113290.0,113280.0,0.00265545]
[1760496500893,0.88767693,113290.0,113280.0,0.00265545]
[1760496501107,0.56151798,113300.0,113280.0,0.17920912]
[1760496501108,0.19036974,113300.0,113280.0,0.17920912]
[1760496501325,0.54766135,113300.0,113290.0,0.17653808]
[1760496501733,0.37113885,113300.0,113290.0,0.17653808]
[1760496501933,0.54766135,113300.0,113290.0,0.17653808]
[1760496502429,0.88766135,113300.0,113290.0,0.17653808]
[1760496503130,0.88766135,113300.0,113290.0,0.17753808]
[1760496503951,0.88770535,113300.0,113290.0,0.17753808]
[1760496504167,0.88766135,113300.0,113290.0,0.17753808]
[1760496506439,0.34,113300.0,113290.0,0.17753808]
[1760496506793,0.5477195,113320.0,113300.0,0.1765225]
[1760496507004,8.775e-05,113320.0,113310.0,0.17650692]
[1760496507209,0.3712266,113320.0,113310.0,0.17650692]
[1760496507411,8.775e-05,113320.0,113310.0,0.17650692]
[1760496507627,0.3712266,113320.0,113310.0,0.19415761]
[1760496508221,8.775e-05,113320.0,113310.0,0.19415761]
[1760496508445,0.3712266,113320.0,113310.0,0.19415761]
[1760496508855,0.3712266,113320.0,113310.0,0.19615761]
[1760496509063,0.3712266,113320.0,113310.0,0.17850692]
[1760496509965,0.3712266,113320.0,113310.0,0.15350692]
[1760496510285,0.9188568,113320.0,113310.0,0.002]
[1760496510418,1.62999565,113320.0,113310.0,0.002]
[1760496510624,1.2588568,113320.0,113310.0,0.002]
[1760496511472,1.2588568,113320.0,113310.0,0.001]
[1760496511677,0.1765225,113300.0,113290.0,0.18536247]
[1760496511922,0.54766135,113300.0,113290.0,0.18536247]
[1760496512820,0.37113885,113300.0,113290.0,0.18536247]
[1760496513038,0.37113885,113300.0,113290.0,0.18636247]
[1760496513259,0.1765201,113310.0,113290.0,0.18636247]
[1760496513468,0.51650747,113310.0,113300.0,0.1765225]
[1760496514121,0.51650692,113310.0,113300.0,0.1765225]
[1760496514783,0.51650692,113310.0,113300.0,0.1775225]
[1760496514983,0.51650692,113310.0,113300.0,0.001]
[1760496515540,0.51650692,113310.0,113300.0,0.002]
[1760496518980,0.52540366,113320.0,113300.0,0.1785225]
[1760496519182,0.70329102,113310.0,113300.0,0.1785225]
[1760496519385,0.17650692,113310.0,113300.0,0.1785225]
[1760496519812,0.17650692,113310.0,113300.0,0.1775225]
[1760496520804,0.17650692,113310.0,113300.0,0.1765225]
[1760496521003,0.17650692,113310.0,113300.0,0.1785225]
[1760496521367,0.17650692,113310.0,113300.0,0.1775225]
[1760496521754,0.17650692,113310.0,113300.0,0.1785225]
[1760496522424,1.05218776,113320.0,113300.0,0.1785225]
[1760496522959,0.17650692,113310.0,113300.0,0.1785225]
[1760496523377,0.17650692,113310.0,113300.0,0.1775225]
[1760496523771,0.17650692,113310.0,113300.0,0.1765225]
[1760496524183,0.17650692,113310.0,113300.0,0.1775225]
[1760496524387,0.17650692,113310.0,113300.0,0.1765225]
[1760496524565,1.05218776,113320.0,113300.0,0.1775225]
[1760496524774,0.17650692,113310.0,113300.0,0.1785225]
[1760496525442,0.17650692,113310.0,113300.0,0.1775225]
[1760496525605,0.17650692,113310.0,113300.0,0.1765225]
[1760496526006,0.17650692,113310.0,113300.0,0.1775225]
[1760496526275,1.05218776,113320.0,113300.0,0.1775225]
[1760496526490,0.5165791,113320.0,113310.0,0.17650692]
[1760496526867,0.34008775,113320.0,113310.0,0.17650692]
[1760496527178,8.775e-05,113320.0,113310.0,0.17650692]
[1760496527337,8.775e-05,113320.0,113310.0,0.19415761]
[1760496528165,8.775e-05,113320.0,113310.0,0.19515761]
[1760496528488,8.775e-05,113320.0,113310.0,0.17750692]
[1760496529751,0.1765791,113320.0,113310.0,0.17750692]
[1760496534500,8.775e-05,113320.0,113310.0,0.17750692]
[1760496536255,0.37082035,113320.0,113310.0,0.17750692]
[1760496536913,0.5473117,113320.0,113310.0,0.17750692]
[1760496537545,0.1765791,113320.0,113310.0,0.17750692]
[1760496537772,0.5473117,113320.0,113310.0,0.17750692]
[1760496538456,0.1765791,113320.0,113310.0,0.17750692]
[1760496538663,0.5473117,113320.0,113310.0,0.17750692]
[1760496539186,0.37082035,113320.0,113310.0,0.17750692]
[1760496542732,0.51705348,113330.0,113310.0,0.17750692]
[1760496542944,0.88783576,113330.0,113310.0,0.17750692]
[1760496544466,0.88783576,113330.0,113310.0,0.17650692]
[1760496544670,0.88783576,113330.0,113310.0,0.19415761]
[1760496545772,0.51710316,113330.0,113310.0,0.19415761]
[1760496546078,0.88783576,113330.0,113310.0,0.19415761]
[1760496549675,0.17649135,113320.0,113310.0,0.19415761]
[1760496549899,0.3707326,113320.0,113310.0,0.19415761]
[1760496550566,0.54722395,113320.0,113310.0,0.19415761]
[1760496550767,0.54722395,113320.0,113310.0,0.19515761]
[1760496550970,0.3707326,113320.0,113310.0,0.17750692]
[1760496552442,0.88783576,113330.0,113310.0,0.17750692]
[1760496553729,0.88783576,113330.0,113310.0,0.17650692]
[1760496557443,0.51710316,113330.0,113310.0,0.17650692]
[1760496557813,0.51710316,113330.0,113310.0,0.19415761]
[1760496566017,0.17649135,113320.0,113310.0,0.19415761]
[1760496567601,0.17649135,113320.0,113310.0,0.19515761]
[1760496568760,0.17649135,113320.0,113310.0,0.17750692]
[1760496570987,0.17649135,113320.0,113310.0,0.001]
[1760496571411,0.17649135,113320.0,113310.0,0.01865069]
[1760496572005,0.88723119,113320.0,113310.0,0.001]
[1760496572848,0.91377848,113320.0,113310.0,0.001]
[1760496573869,0.88723119,113320.0,113310.0,0.001]
[1760496575901,0.90378142,113320.0,113310.0,0.001]
[1760496578290,0.88723119,113320.0,113310.0,0.001]
[1760496589512,0.51649135,113320.0,113310.0,0.17750692]
[1760496589912,0.34,113320.0,113310.0,0.17750692]
[1760496590113,0.17710316,113330.0,113310.0,0.17750692]
[1760496590927,0.17649135,113320.0,113310.0,0.17750692]
[1760496591347,0.17710316,113330.0,113310.0,0.17650692]
[1760496591482,0.17710316,113330.0,113310.0,0.19415761]
[1760496591676,0.17649135,113320.0,113310.0,0.19415761]
[1760496592434,0.17649135,113320.0,113310.0,0.19515761]
[1760496592640,0.17649135,113320.0,113310.0,0.17750692]
[1760496593977,0.17649135,113320.0,113310.0,0.001]
[1760496596970,0.17649135,113320.0,113310.0,0.17750692]
[1760496597187,0.17649135,113320.0,113310.0,0.19515761]
[1760496597379,0.17649135,113320.0,113310.0,0.17750692]
[1760496597593,0.17649135,113320.0,113310.0,0.001]
[1760496597793,0.54723119,113320.0,113310.0,0.001]
[1760496597955,0.88723119,113320.0,113310.0,0.001]
[1760496598340,0.92761555,113320.0,113310.0,0.001]
[1760496600159,0.55687571,113320.0,113310.0,0.001]
[1760496600539,0.92761555,113320.0,113310.0,0.001]
[1760496601178,0.91377773,113320.0,113310.0,0.001]
[1760496603013,0.54303789,113320.0,113310.0,0.001]
[1760496610384,0.91377773,113320.0,113310.0,0.001]
[1760496613115,0.93033035,113320.0,113310.0,0.001]
[1760496615639,0.91377773,113320.0,113310.0,0.001]
[1760496619468,1.28470827,113320.0,113310.0,0.001]
[1760496621092,0.91387308,113320.0,113310.0,0.001]
[1760496621670,0.54303789,113320.0,113310.0,0.001]
[1760496621976,0.91387308,113320.0,113310.0,0.001]
[1760496626327,0.93044066,113320.0,113310.0,0.001]
[1760496628976,1.08387318,113320.0,113310.0,0.001]
[1760496629182,1.26036453,113320.0,113310.0,0.001]
[1760496631736,0.51869415,113320.0,113310.0,0.001]
[1760496631938,1.26036453,113320.0,113310.0,0.001]
[1760496636569,1.24379695,113320.0,113310.0,0.001]
[1760496636751,1.26036513,113320.0,113310.0,0.001]
[1760496638389,1.6673826,113320.0,113310.0,0.001]
[1760496638632,1.68480481,113320.0,113310.0,0.001]
[1760496638780,0.51653808,113290.0,113280.0,0.00265545]
[1760496638984,0.88737327,113290.0,113280.0,0.00265545]
[1760496639439,0.91392646,113290.0,113280.0,0.00265545]
[1760496639988,0.91392646,113290.0,113280.0,0.00315285]
[1760496640270,0.91392646,113290.0,113280.0,0.00415285]
[1760496641418,0.91392646,113290.0,113280.0,0.00515285]
[1760496641650,0.92776762,113290.0,113280.0,0.00515285]
[1760496641851,0.92776762,113290.0,113280.0,0.00415285]
[1760496642056,1.31514616,113290.0,113280.0,0.00415285]
[1760496642667,1.301305,113290.0,113280.0,0.00415285]
[1760496642841,1.301305,113290.0,113280.0,0.00315285]
[1760496643045,1.301305,113290.0,113280.0,0.00415285]
[1760496643443,1.301305,113290.0,113280.0,0.00315285]
[1760496643444,1.33748728,113290.0,113280.0,0.00315285]
[1760496646914,1.33748728,113290.0,113280.0,0.00315285]
[1760496647253,1.35132988,113290.0,113280.0,0.00315285]
[1760496648353,0.6096595,113290.0,113280.0,0.00315285]
[1760496648642,1.35132988,113290.0,113280.0,0.00315285]
[1760496648914,0.6096595,113290.0,113280.0,0.00315285]
[1760496649142,0.98049469,113290.0,113280.0,0.00315285]
[1760496649346,1.35132988,113290.0,113280.0,0.00315285]
[1760496651784,1.35127821,113290.0,113280.0,0.00315285]
[1760496654155,1.14130771,113290.0,113280.0,0.00315285]
[1760496654469,1.31784579,113290.0,113280.0,0.00315285]
[1760496655577,1.30400319,113290.0,113280.0,0.00315285]
[1760496657284,0.933168,113290.0,113280.0,0.00315285]
[1760496657487,0.89698572,113290.0,113280.0,0.00315285]
[1760496658169,0.59041814,113290.0,113280.0,0.00315285]
[1760496658575,0.93041814,113290.0,113280.0,0.00315285]
[1760496658722,0.94425965,113290.0,113280.0,0.00315285]
[1760496658920,0.94425965,113290.0,113280.0,0.00415285]
[1760496659130,1.35127712,113290.0,113280.0,0.00415285]
[1760496660177,1.35127712,113290.0,113280.0,0.00315285]
[1760496662508,0.60960674,113290.0,113280.0,0.00315285]
[1760496662667,1.35127712,113290.0,113280.0,0.00315285]
[1760496663565,0.98044193,113290.0,113280.0,0.00315285]
[1760496663779,0.94425965,113290.0,113280.0,0.00315285]
[1760496663925,0.90386495,113290.0,113280.0,0.00315285]
[1760496664574,0.01649168,113290.0,113280.0,0.17970652]
[1760496664828,0.1765225,113300.0,113290.0,0.17653808]
[1760496665039,0.52533296,113310.0,113300.0,0.1765225]
[1760496665269,0.1765225,113300.0,113290.0,0.17653808]
[1760496665480,0.5165225,113300.0,113290.0,0.54737327]
[1760496665693,0.1765225,113300.0,113280.0,0.55154171]
[1760496665947,0.19303871,113300.0,113280.0,0.56036939]
[1760496666380,0.53303871,113300.0,113280.0,0.56036939]
[1760496666561,0.53303871,113300.0,113280.0,0.1895342]
[1760496666761,0.53303871,113300.0,113280.0,0.56036939]
[1760496667333,0.53303871,113300.0,113290.0,0.001]
[1760496667740,0.53303871,113300.0,113280.0,0.56036939]
[1760496668306,0.90388359,113300.0,113280.0,0.56036939]
[1760496668718,0.90388359,113300.0,113290.0,0.001]
[1760496669016,0.5330484,113300.0,113280.0,0.56036939]
[1760496669234,0.90388359,113300.0,113280.0,0.56036939]
[1760496669444,0.90388359,113300.0,113280.0,0.56136939]
[1760496669656,0.90388359,113300.0,113280.0,0.56036939]
[1760496669874,0.90388359,113300.0,113290.0,0.001]
[1760496670116,0.90388359,113300.0,113290.0,0.17753808]
[1760496670390,0.5165225,113300.0,113290.0,0.17753808]
[1760496670608,0.5165225,113300.0,113290.0,0.001]
[1760496671393,0.88735769,113300.0,113290.0,0.001]
[1760496671611,0.5165225,113300.0,113290.0,0.001]
[1760496671852,0.88735769,113300.0,113290.0,0.001]
[1760496672069,0.88735769,113300.0,113290.0,0.002]
[1760496672287,0.5165225,113300.0,113290.0,0.002]
[1760496672493,0.88735769,113300.0,113290.0,0.17853808]
[1760496672787,0.5165225,113300.0,113290.0,0.17853808]
[1760496675075,0.5165225,113300.0,113290.0,0.002]
[1760496675280,0.88735769,113300.0,113290.0,0.002]
[1760496675493,0.88735769,113300.0,113290.0,0.17853808]
[1760496680188,0.5165225,113300.0,113290.0,0.17853808]
[1760496680636,0.34,113300.0,113290.0,0.17853808]
[1760496681047,0.5165225,113300.0,113290.0,0.17853808]
[1760496683190,0.5165225,113300.0,113290.0,0.002]
[1760496683400,0.88739589,113300.0,113290.0,0.002]
[1760496683810,0.5165225,113300.0,113290.0,0.002]
[1760496684258,0.88739589,113300.0,113290.0,0.002]
[1760496684464,0.91774414,113300.0,113290.0,0.002]
[1760496684663,0.53036253,113300.0,113290.0,0.002]
[1760496692317,0.35384003,113300.0,113290.0,0.17853808]
[1760496692549,0.01384003,113300.0,113290.0,0.54941147]
[1760496694267,0.01384003,113300.0,113290.0,0.17853808]
[1760496694711,0.64622765,113330.0,113320.0,0.17649135]
[1760496694712,0.07232283,113330.0,113320.0,0.17649135]
[1760496694914,0.07232283,113330.0,113310.0,0.17649287]
[1760496694915,0.26536215,113330.0,113310.0,0.17649287]
[1760496695125,0.19361005,113330.0,113310.0,0.19414356]
[1760496695555,0.34,113320.0,113310.0,0.19414356]
[1760496695828,0.51649135,113320.0,113310.0,0.19414356]
[1760496696038,0.51649135,113320.0,113310.0,0.01765069]
[1760496696266,0.533046,113320.0,113310.0,0.01765069]
[1760496696691,0.00057073,113330.0,113320.0,0.17649135]
[1760496696899,0.00057073,113330.0,113320.0,0.54736474]
[1760496697118,0.1770465,113330.0,113320.0,0.54736474]
[1760496697337,0.1770465,113330.0,113310.0,0.17650692]
[1760496697545,0.5170465,113330.0,113310.0,0.28746692]
[1760496697749,0.5170465,113330.0,113310.0,0.17650692]
[1760496698163,0.5170465,113330.0,113320.0,0.17749135]
[1760496698380,0.5170465,113330.0,113320.0,0.17849135]
[1760496698582,0.5170465,113330.0,113320.0,0.17649135]
[1760496699119,0.5170465,113330.0,113310.0,0.65934031]
[1760496699324,0.5170465,113330.0,113310.0,0.28846692]
[1760496699555,0.5170465,113330.0,113320.0,0.17649135]
[1760496699938,0.5170465,113330.0,113310.0,0.28946692]
[1760496700330,0.53357065,113330.0,113320.0,0.19414048]
[1760496700507,0.5170465,113330.0,113320.0,0.19514048]